[Event "Early-Titled-Tuesday-Blitz-January-30-2024"]
[Site "Chess.com"]
[Date "2024.01.30"]
[Round "10"]
[White "jk13"]
[Black "marik_spb"]
[Result "1-0"]
[WhiteElo "2706"]
[BlackElo "2470"]
[TimeControl "180+1"]
[EndTime "10:01:42 PST"]
[Termination "jk13 won on time"]

1. e4 {[%clk 0:03:00.9]} 1... c5 {[%clk 0:02:57.1]} 2. c3 {[%clk 0:03:00.8]}
2... d5 {[%clk 0:02:52]} 3. exd5 {[%clk 0:03:01]} 3... Qxd5 {[%clk 0:02:52]} 4.
d4 {[%clk 0:03:01.4]} 4... Nf6 {[%clk 0:02:52.6]} 5. Nf3 {[%clk 0:02:59.1]} 5...
Bg4 {[%clk 0:02:50.3]} 6. Nbd2 {[%clk 0:02:58.8]} 6... cxd4 {[%clk 0:02:47.3]}
7. Bc4 {[%clk 0:02:59.1]} 7... Qh5 {[%clk 0:02:13.1]} 8. Qb3 {[%clk 0:02:56.4]}
8... Nbd7 {[%clk 0:02:06.8]} 9. cxd4 {[%clk 0:02:32]} 9... e6 {[%clk 0:02:02]}
10. O-O {[%clk 0:02:17.2]} 10... Bd6 {[%clk 0:01:58]} 11. h3 {[%clk 0:02:02.7]}
11... Bxh3 {[%clk 0:01:18.9]} 12. gxh3 {[%clk 0:01:47.1]} 12... Qxh3 {[%clk
0:01:19.8]} 13. Ne5 {[%clk 0:01:18.7]} 13... Qxb3 {[%clk 0:01:16.7]} 14. Nxb3
{[%clk 0:01:05.3]} 14... Nxe5 {[%clk 0:01:09.4]} 15. dxe5 {[%clk 0:01:06.2]}
15... Bxe5 {[%clk 0:01:10.3]} 16. Re1 {[%clk 0:01:02.4]} 16... Bc7 {[%clk
0:01:08.6]} 17. Bb5+ {[%clk 0:00:55.4]} 17... Ke7 {[%clk 0:01:02.9]} 18. Be3
{[%clk 0:00:54.6]} 18... Rhd8 {[%clk 0:00:55.5]} 19. Rac1 {[%clk 0:00:49.2]}
19... Bd6 {[%clk 0:00:49.9]} 20. Na5 {[%clk 0:00:47.1]} 20... a6 {[%clk
0:00:26]} 21. Bf1 {[%clk 0:00:41.1]} 21... Bb4 {[%clk 0:00:19.2]} 22. Nxb7
{[%clk 0:00:29.3]} 22... Rdb8 {[%clk 0:00:18.7]} 23. Rc7+ {[%clk 0:00:26.3]}
23... Kf8 {[%clk 0:00:17.8]} 24. Rd1 {[%clk 0:00:22.4]} 24... Ne8 {[%clk
0:00:15.9]} 25. Rcd7 {[%clk 0:00:21.4]} 25... Nf6 {[%clk 0:00:15.8]} 26. Rd8+
{[%clk 0:00:20.6]} 26... Rxd8 {[%clk 0:00:07.8]} 27. Rxd8+ {[%clk 0:00:19]}
27... Rxd8 {[%clk 0:00:03]} 28. Nxd8 {[%clk 0:00:19.9]} 28... Nd5 {[%clk
0:00:02.1]} 29. Bd4 {[%clk 0:00:14.8]} 29... a5 {[%clk 0:00:01.5]} 30. Nc6
{[%clk 0:00:14.5]} 30... Bd2 {[%clk 0:00:01.6]} 31. Bc4 {[%clk 0:00:11.8]} 31...
Nf4 {[%clk 0:00:01]} 32. Bc5+ {[%clk 0:00:09.8]} 32... Kg8 {[%clk 0:00:01.1]}
33. Ne7+ {[%clk 0:00:08.9]} 1-0

[Event "Early-Titled-Tuesday-Blitz-January-30-2024"]
[Site "Chess.com"]
[Date "2024.01.30"]
[Round "10"]
[White "KuzubovYuriy"]
[Black "Hovik_Hayrapetyan"]
[Result "1-0"]
[WhiteElo "2918"]
[BlackElo "2785"]
[TimeControl "180+1"]
[EndTime "10:01:43 PST"]
[Termination "KuzubovYuriy won on time"]

1. d4 {[%clk 0:03:00.9]} 1... Nf6 {[%clk 0:02:59.5]} 2. Nf3 {[%clk 0:03:01.5]}
2... d5 {[%clk 0:02:59.4]} 3. c4 {[%clk 0:03:01.7]} 3... e6 {[%clk 0:02:59.6]}
4. Nc3 {[%clk 0:03:02.4]} 4... Bb4 {[%clk 0:02:59.3]} 5. Bg5 {[%clk 0:03:02.5]}
5... h6 {[%clk 0:02:57]} 6. Bxf6 {[%clk 0:03:03]} 6... Qxf6 {[%clk 0:02:57.5]}
7. e3 {[%clk 0:03:03.3]} 7... O-O {[%clk 0:02:56.2]} 8. Rc1 {[%clk 0:03:02]}
8... dxc4 {[%clk 0:02:54.5]} 9. Bxc4 {[%clk 0:03:02.9]} 9... c5 {[%clk
0:02:53.1]} 10. dxc5 {[%clk 0:03:03.4]} 10... Nd7 {[%clk 0:02:47]} 11. c6 {[%clk
0:03:03.3]} 11... Nb6 {[%clk 0:02:35.3]} 12. Qb3 {[%clk 0:02:47.5]} 12... Bxc3+
{[%clk 0:02:16.8]} 13. Qxc3 {[%clk 0:02:47]} 13... bxc6 {[%clk 0:01:59.8]} 14.
Qxf6 {[%clk 0:02:37.8]} 14... gxf6 {[%clk 0:02:00.7]} 15. Be2 {[%clk 0:02:37.5]}
15... Bb7 {[%clk 0:01:59.2]} 16. Rc5 {[%clk 0:02:33.6]} 16... Rfd8 {[%clk
0:01:53.3]} 17. O-O {[%clk 0:02:14.5]} 17... Rd5 {[%clk 0:01:52.9]} 18. Rc2
{[%clk 0:02:08.3]} 18... Rad8 {[%clk 0:01:32.6]} 19. Rfc1 {[%clk 0:02:07.7]}
19... Rc8 {[%clk 0:00:55.5]} 20. Nd4 {[%clk 0:01:51.5]} 20... c5 {[%clk
0:00:54.9]} 21. Bf3 {[%clk 0:01:49.7]} 21... cxd4 {[%clk 0:00:50.8]} 22. Rxc8+
{[%clk 0:01:49.6]} 22... Bxc8 {[%clk 0:00:47.5]} 23. Bxd5 {[%clk 0:01:49.7]}
23... exd5 {[%clk 0:00:47.7]} 24. exd4 {[%clk 0:01:49]} 24... Be6 {[%clk
0:00:32.8]} 25. Rc7 {[%clk 0:01:44.3]} 25... Nc8 {[%clk 0:00:17.9]} 26. b4
{[%clk 0:01:34.2]} 26... Kf8 {[%clk 0:00:17.1]} 27. a4 {[%clk 0:01:27.7]} 27...
Ke8 {[%clk 0:00:15.1]} 28. b5 {[%clk 0:01:26.3]} 28... Kd8 {[%clk 0:00:13.7]}
29. Rc6 {[%clk 0:01:22.2]} 29... Kd7 {[%clk 0:00:10.1]} 30. f3 {[%clk
0:01:16.5]} 30... Nb6 {[%clk 0:00:09.7]} 31. a5 {[%clk 0:01:15.9]} 31... Nc8
{[%clk 0:00:08]} 32. Ra6 {[%clk 0:01:05.1]} 32... Kc7 {[%clk 0:00:07.6]} 33. Kf2
{[%clk 0:01:05.2]} 33... Kb7 {[%clk 0:00:02.6]} 34. g4 {[%clk 0:01:01.6]} 34...
Ne7 {[%clk 0:00:02.6]} 35. f4 {[%clk 0:00:52.5]} 35... f5 {[%clk 0:00:02.8]} 36.
g5 {[%clk 0:00:52.6]} 36... h5 {[%clk 0:00:02.7]} 37. Ke3 {[%clk 0:00:51.3]}
37... Ng6 {[%clk 0:00:02.7]} 38. Rc6 {[%clk 0:00:45.9]} 38... Ne7 {[%clk
0:00:02.8]} 39. Rc5 {[%clk 0:00:38.8]} 39... Nc8 {[%clk 0:00:01.9]} 40. Rc6
{[%clk 0:00:35.7]} 40... Ne7 {[%clk 0:00:02.3]} 41. a6+ {[%clk 0:00:35.7]} 41...
Kb8 {[%clk 0:00:02.4]} 42. Rc5 {[%clk 0:00:35.5]} 42... Nc8 {[%clk 0:00:02.9]}
43. Kd3 {[%clk 0:00:31.1]} 43... Nd6 {[%clk 0:00:03.3]} 44. g6 {[%clk
0:00:30.6]} 1-0

[Event "Early-Titled-Tuesday-Blitz-January-30-2024"]
[Site "Chess.com"]
[Date "2024.01.30"]
[Round "10"]
[White "DefiantChair"]
[Black "LimeInTheCoconut"]
[Result "1-0"]
[WhiteElo "2593"]
[BlackElo "2471"]
[TimeControl "180+1"]
[EndTime "10:01:44 PST"]
[Termination "DefiantChair won on time"]

1. e4 {[%clk 0:03:00.9]} 1... e5 {[%clk 0:02:59.5]} 2. Nf3 {[%clk 0:03:00.7]}
2... Nc6 {[%clk 0:02:59.6]} 3. Bb5 {[%clk 0:03:01.3]} 3... g6 {[%clk 0:03:00]}
4. c3 {[%clk 0:03:01.3]} 4... d6 {[%clk 0:02:59.7]} 5. O-O {[%clk 0:02:59.7]}
5... Bg7 {[%clk 0:02:59.5]} 6. d4 {[%clk 0:02:59.2]} 6... Bd7 {[%clk 0:03:00]}
7. d5 {[%clk 0:02:59.1]} 7... Nce7 {[%clk 0:03:00.5]} 8. Bxd7+ {[%clk 0:03:00]}
8... Qxd7 {[%clk 0:03:01.4]} 9. c4 {[%clk 0:03:00.8]} 9... h6 {[%clk 0:03:01.8]}
10. Nc3 {[%clk 0:03:01.7]} 10... f5 {[%clk 0:03:02.5]} 11. b4 {[%clk 0:03:01.2]}
11... Nf6 {[%clk 0:03:01.2]} 12. Nd2 {[%clk 0:03:01.1]} 12... O-O {[%clk
0:02:42.4]} 13. Re1 {[%clk 0:02:57.2]} 13... c6 {[%clk 0:02:34.4]} 14. Qe2
{[%clk 0:02:18.4]} 14... Kh7 {[%clk 0:02:26.5]} 15. Bb2 {[%clk 0:02:18.1]} 15...
Rac8 {[%clk 0:02:24.6]} 16. Rac1 {[%clk 0:02:16.6]} 16... cxd5 {[%clk
0:02:20.4]} 17. exd5 {[%clk 0:02:14.2]} 17... a6 {[%clk 0:02:09.5]} 18. c5
{[%clk 0:02:10.5]} 18... Nexd5 {[%clk 0:01:59.8]} 19. Nxd5 {[%clk 0:02:09]}
19... Nxd5 {[%clk 0:02:00.4]} 20. Nc4 {[%clk 0:02:09.2]} 20... dxc5 {[%clk
0:01:53.2]} 21. Rcd1 {[%clk 0:02:05.5]} 21... Qc6 {[%clk 0:01:38.5]} 22. Nxe5
{[%clk 0:02:02.7]} 22... Nf4 {[%clk 0:01:17.5]} 23. Nxc6 {[%clk 0:01:57.6]}
23... Nxe2+ {[%clk 0:01:14.9]} 24. Rxe2 {[%clk 0:01:58.5]} 24... Bxb2 {[%clk
0:00:55.1]} 25. Rd7+ {[%clk 0:01:54]} 25... Kh8 {[%clk 0:00:46.5]} 26. Ne7
{[%clk 0:01:52.1]} 26... Rf7 {[%clk 0:00:28.8]} 27. Rxb2 {[%clk 0:01:48.5]}
27... Re8 {[%clk 0:00:15.3]} 28. Re2 {[%clk 0:01:43.4]} 28... Kh7 {[%clk
0:00:13.4]} 29. Kf1 {[%clk 0:01:40.6]} 29... cxb4 {[%clk 0:00:11.5]} 30. Rxb7
{[%clk 0:01:39.4]} 30... a5 {[%clk 0:00:11.1]} 31. f4 {[%clk 0:01:38.5]} 31...
a4 {[%clk 0:00:09.5]} 32. Kf2 {[%clk 0:01:21.1]} 32... b3 {[%clk 0:00:09]} 33.
axb3 {[%clk 0:01:19.5]} 33... axb3 {[%clk 0:00:09.9]} 34. Ke1 {[%clk 0:01:10.2]}
34... b2 {[%clk 0:00:10.1]} 35. Kd2 {[%clk 0:01:07.6]} 35... b1=Q {[%clk
0:00:07.9]} 36. Rxb1 {[%clk 0:01:06.2]} 36... Rfxe7 {[%clk 0:00:08.1]} 37. Rxe7+
{[%clk 0:01:05.2]} 37... Rxe7 {[%clk 0:00:09]} 38. Rb4 {[%clk 0:01:05]} 38...
Kg7 {[%clk 0:00:09]} 39. Kd3 {[%clk 0:01:04.2]} 39... Kf6 {[%clk 0:00:09.5]} 40.
g3 {[%clk 0:01:04.2]} 40... g5 {[%clk 0:00:09.7]} 41. Rb6+ {[%clk 0:01:04.2]}
41... Re6 {[%clk 0:00:10]} 42. Rxe6+ {[%clk 0:00:57.7]} 42... Kxe6 {[%clk
0:00:10.2]} 43. Kd4 {[%clk 0:00:55.9]} 43... Kd6 {[%clk 0:00:04.3]} 44. h3
{[%clk 0:00:55.8]} 44... gxf4 {[%clk 0:00:03.2]} 45. gxf4 {[%clk 0:00:56.7]}
45... Ke6 {[%clk 0:00:02]} 46. Kc5 {[%clk 0:00:55.6]} 46... Kf6 {[%clk
0:00:01.5]} 47. Kd5 {[%clk 0:00:55.6]} 1-0

[Event "Early-Titled-Tuesday-Blitz-January-30-2024"]
[Site "Chess.com"]
[Date "2024.01.30"]
[Round "10"]
[White "Yurasova_Daria"]
[Black "NM_Antelacus"]
[Result "1-0"]
[WhiteElo "2432"]
[BlackElo "2245"]
[TimeControl "180+1"]
[EndTime "10:01:44 PST"]
[Termination "Yurasova_Daria won by resignation"]

1. d4 {[%clk 0:03:00.9]} 1... Nf6 {[%clk 0:02:53.4]} 2. Bg5 {[%clk 0:03:00.1]}
2... e6 {[%clk 0:02:52.9]} 3. e4 {[%clk 0:02:59.3]} 3... Be7 {[%clk 0:02:51.9]}
4. Nd2 {[%clk 0:02:53]} 4... h6 {[%clk 0:02:51]} 5. Bxf6 {[%clk 0:02:51]} 5...
Bxf6 {[%clk 0:02:50.6]} 6. c3 {[%clk 0:02:50.5]} 6... b6 {[%clk 0:02:49.9]} 7.
Bd3 {[%clk 0:02:49.7]} 7... Bb7 {[%clk 0:02:49.9]} 8. Ne2 {[%clk 0:02:48.8]}
8... c5 {[%clk 0:02:47.2]} 9. O-O {[%clk 0:02:46.2]} 9... O-O {[%clk 0:02:45.7]}
10. f4 {[%clk 0:02:45.6]} 10... d6 {[%clk 0:02:44.3]} 11. Qe1 {[%clk 0:02:42.2]}
11... Bh4 {[%clk 0:02:41.2]} 12. Ng3 {[%clk 0:02:41.7]} 12... Nc6 {[%clk
0:02:33.3]} 13. Nf3 {[%clk 0:02:40.5]} 13... cxd4 {[%clk 0:02:29.8]} 14. cxd4
{[%clk 0:02:40.2]} 14... Rc8 {[%clk 0:02:26.3]} 15. f5 {[%clk 0:02:37.2]} 15...
exf5 {[%clk 0:02:24.1]} 16. Nxh4 {[%clk 0:02:36.5]} 16... Qxh4 {[%clk 0:02:23]}
17. Nxf5 {[%clk 0:02:30.6]} 17... Qxe1 {[%clk 0:02:20.9]} 18. Raxe1 {[%clk
0:02:31.5]} 18... Rcd8 {[%clk 0:02:13.2]} 19. Bc4 {[%clk 0:02:23.1]} 19... g6
{[%clk 0:02:07.1]} 20. Nxh6+ {[%clk 0:02:22.7]} 20... Kg7 {[%clk 0:02:07.5]} 21.
Nxf7 {[%clk 0:02:21.6]} 21... Rd7 {[%clk 0:02:04.7]} 22. Ng5 {[%clk 0:02:08.9]}
22... Rxf1+ {[%clk 0:02:02.9]} 23. Rxf1 {[%clk 0:02:09.8]} 23... Nxd4 {[%clk
0:02:01.8]} 24. Rd1 {[%clk 0:02:08]} 24... Nc2 {[%clk 0:01:52.8]} 25. Rd3 {[%clk
0:01:50.1]} 25... Nb4 {[%clk 0:01:49.4]} 26. Rg3 {[%clk 0:01:45.9]} 26... Kf6
{[%clk 0:01:47]} 27. h4 {[%clk 0:01:42]} 27... Ke5 {[%clk 0:01:42.2]} 28. Nf3+
{[%clk 0:01:36.6]} 28... Kxe4 {[%clk 0:01:40]} 29. Rxg6 {[%clk 0:01:36.4]} 29...
d5 {[%clk 0:01:34.9]} 30. Bb5 {[%clk 0:01:30.5]} 30... Re7 {[%clk 0:01:27.6]}
31. Rg4+ {[%clk 0:01:30.2]} 31... Ke3 {[%clk 0:01:22.3]} 32. Rxb4 {[%clk
0:01:24]} 32... Rg7 {[%clk 0:01:17.1]} 33. Bf1 {[%clk 0:01:16.6]} 33... Rd7
{[%clk 0:00:54.5]} 34. Rb3+ {[%clk 0:01:15.4]} 34... Kf4 {[%clk 0:00:53.5]} 35.
Ng5 {[%clk 0:01:13.9]} 35... d4 {[%clk 0:00:49.6]} 36. Rd3 {[%clk 0:01:12.7]}
36... Kg4 {[%clk 0:00:35.4]} 37. g3 {[%clk 0:01:11]} 37... Ba6 {[%clk
0:00:31.7]} 38. Bh3+ {[%clk 0:01:10.6]} 38... Kh5 {[%clk 0:00:30.1]} 39. Bxd7
{[%clk 0:01:11]} 39... Bxd3 {[%clk 0:00:29.2]} 40. Kf2 {[%clk 0:01:09.6]} 40...
Bc4 {[%clk 0:00:22]} 41. Bf5 {[%clk 0:01:04.3]} 41... Bxa2 {[%clk 0:00:20.4]}
42. Kf3 {[%clk 0:01:02.4]} 42... Kh6 {[%clk 0:00:20.1]} 43. Kf4 {[%clk
0:01:02.8]} 43... Bd5 {[%clk 0:00:18]} 44. g4 {[%clk 0:01:00.7]} 44... a5 {[%clk
0:00:17.3]} 45. Be6 {[%clk 0:00:54.3]} 45... Bg2 {[%clk 0:00:15.8]} 46. Nf3
{[%clk 0:00:53]} 46... d3 {[%clk 0:00:15.2]} 47. g5+ {[%clk 0:00:52.3]} 47...
Kg7 {[%clk 0:00:14.1]} 48. Nd2 {[%clk 0:00:51.3]} 48... b5 {[%clk 0:00:13.3]}
49. h5 {[%clk 0:00:51.4]} 49... b4 {[%clk 0:00:12.4]} 50. h6+ {[%clk 0:00:50.4]}
50... Kf8 {[%clk 0:00:11.3]} 51. g6 {[%clk 0:00:50.2]} 51... a4 {[%clk
0:00:10.2]} 52. g7+ {[%clk 0:00:46.2]} 1-0

[Event "Early-Titled-Tuesday-Blitz-January-30-2024"]
[Site "Chess.com"]
[Date "2024.01.30"]
[Round "10"]
[White "YairParkhov"]
[Black "MatthewG-p4p"]
[Result "1/2-1/2"]
[WhiteElo "2690"]
[BlackElo "2872"]
[TimeControl "180+1"]
[EndTime "10:01:45 PST"]
[Termination "Game drawn by repetition"]

1. Nf3 {[%clk 0:03:00.9]} 1... c5 {[%clk 0:02:56.5]} 2. g3 {[%clk 0:03:01.8]}
2... g6 {[%clk 0:02:56.7]} 3. Bg2 {[%clk 0:03:02.2]} 3... Bg7 {[%clk 0:02:57.4]}
4. O-O {[%clk 0:03:02.8]} 4... Nc6 {[%clk 0:02:57.7]} 5. c4 {[%clk 0:02:58.3]}
5... e6 {[%clk 0:02:57.3]} 6. Nc3 {[%clk 0:02:57.4]} 6... Nge7 {[%clk
0:02:57.9]} 7. a3 {[%clk 0:02:55.2]} 7... O-O {[%clk 0:02:56.9]} 8. Rb1 {[%clk
0:02:51.2]} 8... d6 {[%clk 0:02:48.2]} 9. b4 {[%clk 0:02:49.5]} 9... b6 {[%clk
0:02:48.2]} 10. Qc2 {[%clk 0:02:42.8]} 10... Bb7 {[%clk 0:02:47.9]} 11. d3
{[%clk 0:02:39.3]} 11... Qd7 {[%clk 0:02:46.6]} 12. Bd2 {[%clk 0:02:34.2]} 12...
Rfd8 {[%clk 0:02:39.2]} 13. Rfc1 {[%clk 0:02:21.5]} 13... Rac8 {[%clk
0:02:38.6]} 14. h4 {[%clk 0:02:17.2]} 14... Nd4 {[%clk 0:02:20]} 15. Nxd4 {[%clk
0:02:15.6]} 15... cxd4 {[%clk 0:02:20.9]} 16. Bxb7 {[%clk 0:02:13]} 16... Qxb7
{[%clk 0:02:21.8]} 17. Nd1 {[%clk 0:02:02.7]} 17... Nf5 {[%clk 0:02:16.1]} 18.
Qa4 {[%clk 0:01:55.8]} 18... Be5 {[%clk 0:02:09.2]} 19. c5 {[%clk 0:01:43.9]}
19... b5 {[%clk 0:01:59.7]} 20. Qb3 {[%clk 0:01:44]} 20... Bxg3 {[%clk
0:01:08.3]} 21. fxg3 {[%clk 0:01:33.4]} 21... Nxg3 {[%clk 0:01:08.7]} 22. Nf2
{[%clk 0:01:27.1]} 22... Nxe2+ {[%clk 0:01:07.7]} 23. Kf1 {[%clk 0:01:19]} 23...
Nxc1 {[%clk 0:00:30.5]} 24. Rxc1 {[%clk 0:01:19.9]} 24... Qf3 {[%clk 0:00:28.4]}
25. Qd1 {[%clk 0:01:18]} 25... Qd5 {[%clk 0:00:21.1]} 26. Ne4 {[%clk 0:01:12.4]}
26... Qf5+ {[%clk 0:00:19.5]} 27. Kg2 {[%clk 0:01:12.1]} 27... dxc5 {[%clk
0:00:18.5]} 28. bxc5 {[%clk 0:01:06.8]} 28... f6 {[%clk 0:00:12.7]} 29. Qe2
{[%clk 0:01:05.2]} 29... Qd5 {[%clk 0:00:10.9]} 30. Qf3 {[%clk 0:01:04.1]} 30...
Rf8 {[%clk 0:00:08]} 31. Bh6 {[%clk 0:01:01.9]} 31... f5 {[%clk 0:00:05.4]} 32.
Nd6 {[%clk 0:00:57.2]} 32... Qa2+ {[%clk 0:00:03.1]} 33. Kh3 {[%clk 0:00:49.8]}
33... Qxa3 {[%clk 0:00:02.9]} 34. Nxc8 {[%clk 0:00:38.1]} 34... Rxc8 {[%clk
0:00:03.8]} 35. Re1 {[%clk 0:00:33.1]} 35... Qa6 {[%clk 0:00:03.8]} 36. Qf4
{[%clk 0:00:29.9]} 36... Qb7 {[%clk 0:00:02.6]} 37. Rxe6 {[%clk 0:00:27.3]}
37... Qh1+ {[%clk 0:00:02.9]} 38. Kg3 {[%clk 0:00:26]} 38... Qg1+ {[%clk
0:00:03.2]} 39. Kh3 {[%clk 0:00:25.2]} 39... Qh1+ {[%clk 0:00:03.7]} 40. Kg3
{[%clk 0:00:21.3]} 40... Qg1+ {[%clk 0:00:04]} 41. Kf3 {[%clk 0:00:21.8]} 41...
Qf1+ {[%clk 0:00:03.9]} 42. Kg3 {[%clk 0:00:21.3]} 42... Qg1+ {[%clk 0:00:03.3]}
1/2-1/2

[Event "Early-Titled-Tuesday-Blitz-January-30-2024"]
[Site "Chess.com"]
[Date "2024.01.30"]
[Round "10"]
[White "Resignify"]
[Black "HeroWilczek"]
[Result "0-1"]
[WhiteElo "2265"]
[BlackElo "2453"]
[TimeControl "180+1"]
[EndTime "10:01:45 PST"]
[Termination "HeroWilczek won by checkmate"]

1. e4 {[%clk 0:03:00.9]} 1... c6 {[%clk 0:02:59.1]} 2. d4 {[%clk 0:03:00]} 2...
d5 {[%clk 0:02:57.5]} 3. Nd2 {[%clk 0:02:59.6]} 3... dxe4 {[%clk 0:02:57.2]} 4.
Nxe4 {[%clk 0:02:59.7]} 4... Nf6 {[%clk 0:02:57.9]} 5. Nxf6+ {[%clk 0:02:59.5]}
5... exf6 {[%clk 0:02:58.8]} 6. c3 {[%clk 0:03:00]} 6... Bd6 {[%clk 0:02:58.8]}
7. Bd3 {[%clk 0:03:00.6]} 7... O-O {[%clk 0:02:59.1]} 8. Qc2 {[%clk 0:03:01.1]}
8... h5 {[%clk 0:02:58.8]} 9. Ne2 {[%clk 0:02:57.5]} 9... Be6 {[%clk 0:02:57.4]}
10. O-O {[%clk 0:02:46.4]} 10... Qc7 {[%clk 0:02:57.4]} 11. h3 {[%clk
0:02:40.5]} 11... Nd7 {[%clk 0:02:57.9]} 12. c4 {[%clk 0:02:35.2]} 12... Rfe8
{[%clk 0:02:56.6]} 13. Be3 {[%clk 0:02:25.9]} 13... Rad8 {[%clk 0:02:54.5]} 14.
Rfd1 {[%clk 0:02:18.3]} 14... Nf8 {[%clk 0:02:48.3]} 15. Rac1 {[%clk 0:02:10.7]}
15... a5 {[%clk 0:02:46.1]} 16. a3 {[%clk 0:02:07]} 16... Bc8 {[%clk 0:02:37.2]}
17. Nc3 {[%clk 0:01:46.6]} 17... Bh2+ {[%clk 0:02:25.7]} 18. Kh1 {[%clk
0:01:45.2]} 18... Bf4 {[%clk 0:02:23.8]} 19. Re1 {[%clk 0:01:39.3]} 19... Ne6
{[%clk 0:02:22.9]} 20. d5 {[%clk 0:01:30]} 20... Bxe3 {[%clk 0:02:01.9]} 21.
fxe3 {[%clk 0:01:07.2]} 21... Nc5 {[%clk 0:01:54.2]} 22. Bh7+ {[%clk 0:00:59.1]}
22... Kh8 {[%clk 0:01:52.8]} 23. Bf5 {[%clk 0:00:59.2]} 23... Qg3 {[%clk
0:01:37.1]} 24. Bxc8 {[%clk 0:00:42.8]} 24... Rxc8 {[%clk 0:01:38]} 25. Qf5
{[%clk 0:00:30.4]} 25... Qe5 {[%clk 0:01:17.1]} 26. Qxe5 {[%clk 0:00:25.2]}
26... Rxe5 {[%clk 0:01:18]} 27. Rcd1 {[%clk 0:00:13]} 27... Rce8 {[%clk
0:01:17.1]} 28. e4 {[%clk 0:00:11.2]} 28... Nxe4 {[%clk 0:01:11.5]} 29. Nxe4
{[%clk 0:00:08.6]} 29... Rxe4 {[%clk 0:01:12.4]} 30. Rxe4 {[%clk 0:00:08.7]}
30... Rxe4 {[%clk 0:01:13.3]} 31. dxc6 {[%clk 0:00:07.8]} 31... bxc6 {[%clk
0:01:14.2]} 32. Rd6 {[%clk 0:00:02.7]} 32... Rxc4 {[%clk 0:01:13.3]} 33. Rd7
{[%clk 0:00:01.6]} 33... Rc2 {[%clk 0:01:06.3]} 34. Rd8+ {[%clk 0:00:01.4]}
34... Kh7 {[%clk 0:01:05.9]} 35. Rb8 {[%clk 0:00:02.1]} 35... Kg6 {[%clk
0:01:03.7]} 36. Rb6 {[%clk 0:00:01.5]} 36... h4 {[%clk 0:00:59.4]} 37. Kh2
{[%clk 0:00:02.2]} 37... Kg5 {[%clk 0:00:58.6]} 38. b4 {[%clk 0:00:02]} 38...
axb4 {[%clk 0:00:57.3]} 39. Rxb4 {[%clk 0:00:01.9]} 39... f5 {[%clk 0:00:54.3]}
40. a4 {[%clk 0:00:02]} 40... Ra2 {[%clk 0:00:53.2]} 41. Rc4 {[%clk 0:00:02]}
41... c5 {[%clk 0:00:53]} 42. Rxc5 {[%clk 0:00:01.5]} 42... Rxa4 {[%clk
0:00:53.3]} 43. Rc7 {[%clk 0:00:01.7]} 43... Kg6 {[%clk 0:00:52.8]} 44. Rc6+
{[%clk 0:00:02.3]} 44... f6 {[%clk 0:00:53.2]} 45. Rc5 {[%clk 0:00:02.5]} 45...
Kg5 {[%clk 0:00:52.4]} 46. Rc7 {[%clk 0:00:02]} 46... g6 {[%clk 0:00:52.9]} 47.
Re7 {[%clk 0:00:01.3]} 47... Ra2 {[%clk 0:00:52.7]} 48. Rf7 {[%clk 0:00:01.5]}
48... f4 {[%clk 0:00:52.1]} 49. Rg7 {[%clk 0:00:01.7]} 49... f3 {[%clk
0:00:51.7]} 50. Kh1 {[%clk 0:00:01.9]} 50... Ra1+ {[%clk 0:00:47.3]} 51. Kh2
{[%clk 0:00:01.6]} 51... f2 {[%clk 0:00:47.9]} 52. Rxg6+ {[%clk 0:00:01.3]}
52... Kxg6 {[%clk 0:00:47.6]} 53. g4 {[%clk 0:00:02.2]} 53... f1=Q {[%clk
0:00:46.9]} 54. g5 {[%clk 0:00:02]} 54... Qf2# {[%clk 0:00:47.8]} 0-1

[Event "Early-Titled-Tuesday-Blitz-January-30-2024"]
[Site "Chess.com"]
[Date "2024.01.30"]
[Round "10"]
[White "Zq1"]
[Black "elchacal664"]
[Result "0-1"]
[WhiteElo "2494"]
[BlackElo "2386"]
[TimeControl "180+1"]
[EndTime "10:01:50 PST"]
[Termination "elchacal664 won on time"]

1. d4 {[%clk 0:03:00.9]} 1... d5 {[%clk 0:02:59.2]} 2. c4 {[%clk 0:03:00.8]}
2... e6 {[%clk 0:02:59.2]} 3. Nc3 {[%clk 0:02:57.8]} 3... c5 {[%clk 0:02:56.4]}
4. e3 {[%clk 0:02:56.4]} 4... Nf6 {[%clk 0:02:55.1]} 5. Nf3 {[%clk 0:02:56.5]}
5... Nc6 {[%clk 0:02:54.7]} 6. a3 {[%clk 0:02:54.4]} 6... a6 {[%clk 0:02:54.4]}
7. cxd5 {[%clk 0:02:51.2]} 7... exd5 {[%clk 0:02:53.5]} 8. Be2 {[%clk
0:02:50.4]} 8... c4 {[%clk 0:02:52.5]} 9. Ne5 {[%clk 0:02:48]} 9... Bd6 {[%clk
0:02:51.2]} 10. f4 {[%clk 0:02:47]} 10... O-O {[%clk 0:02:50.8]} 11. Bf3 {[%clk
0:02:45.7]} 11... Ne7 {[%clk 0:02:41]} 12. g4 {[%clk 0:02:35.8]} 12... Ng6
{[%clk 0:02:02.8]} 13. g5 {[%clk 0:02:32.3]} 13... Ne4 {[%clk 0:01:59.1]} 14.
Nxe4 {[%clk 0:02:25]} 14... dxe4 {[%clk 0:01:57.5]} 15. Bxe4 {[%clk 0:02:22.1]}
15... Nxe5 {[%clk 0:01:39]} 16. dxe5 {[%clk 0:02:20]} 16... Bc5 {[%clk
0:01:39.2]} 17. Qxd8 {[%clk 0:02:11.9]} 17... Rxd8 {[%clk 0:01:38.3]} 18. Ke2
{[%clk 0:02:00.6]} 18... Bg4+ {[%clk 0:01:35.9]} 19. Bf3 {[%clk 0:01:59.8]}
19... Bxf3+ {[%clk 0:01:35.7]} 20. Kxf3 {[%clk 0:01:59.3]} 20... Rd3 {[%clk
0:01:36.3]} 21. Ke2 {[%clk 0:01:26.8]} 21... Rad8 {[%clk 0:01:33.5]} 22. h4
{[%clk 0:01:26.7]} 22... g6 {[%clk 0:01:32.4]} 23. a4 {[%clk 0:01:15.4]} 23...
a5 {[%clk 0:01:29.7]} 24. Re1 {[%clk 0:00:59.5]} 24... Kf8 {[%clk 0:01:28.1]}
25. Rf1 {[%clk 0:00:58.2]} 25... Ke7 {[%clk 0:01:27.5]} 26. Re1 {[%clk
0:00:58.3]} 26... Ke6 {[%clk 0:01:27.4]} 27. Kf3 {[%clk 0:00:46.5]} 27... Kf5
{[%clk 0:01:23.5]} 28. Rf1 {[%clk 0:00:42.9]} 28... Rb3 {[%clk 0:01:22.5]} 29.
Ke2 {[%clk 0:00:38.3]} 29... Ke4 {[%clk 0:01:20.1]} 30. f5 {[%clk 0:00:37.3]}
30... Bxe3 {[%clk 0:01:13.2]} 31. Rf3 {[%clk 0:00:33.6]} 31... Rdd3 {[%clk
0:01:08.6]} 32. e6 {[%clk 0:00:21.7]} 32... Bxg5 {[%clk 0:01:03.6]} 33. Rxd3
{[%clk 0:00:16.4]} 33... cxd3+ {[%clk 0:01:03]} 34. Kd1 {[%clk 0:00:15.5]} 34...
Bxh4 {[%clk 0:00:46.3]} 35. exf7 {[%clk 0:00:12.1]} 35... Be7 {[%clk 0:00:43.8]}
36. fxg6 {[%clk 0:00:12]} 36... hxg6 {[%clk 0:00:42.8]} 37. Bh6 {[%clk
0:00:11.7]} 37... Rxb2 {[%clk 0:00:39.3]} 38. f8=Q {[%clk 0:00:10.7]} 38... Bxf8
{[%clk 0:00:38.8]} 39. Bxf8 {[%clk 0:00:10.6]} 39... Rf2 {[%clk 0:00:39.7]} 40.
Rc1 {[%clk 0:00:06.7]} 40... Rxf8 {[%clk 0:00:36]} 41. Rc7 {[%clk 0:00:06.4]}
41... Rf4 {[%clk 0:00:28.3]} 42. Rxb7 {[%clk 0:00:04.8]} 42... g5 {[%clk
0:00:27.7]} 43. Ra7 {[%clk 0:00:02.9]} 43... Rf5 {[%clk 0:00:26.7]} 44. Re7+
{[%clk 0:00:01.5]} 44... Kf3 {[%clk 0:00:25.6]} 45. Rd7 {[%clk 0:00:01.3]} 45...
g4 {[%clk 0:00:24.9]} 46. Rxd3+ {[%clk 0:00:01.1]} 46... Kf2 {[%clk 0:00:24.9]}
0-1